fUSD/lending_fUSD_20250610
["ID","MTS","AMOUNT","RATE_DAILY","PERIOD"]
[365215166,1749538245886,-490.0,0.00016767,2]
[365215167,1749538245897,-490.0,0.00016767,2]
[365215168,1749538245909,-490.0,0.00016767,2]
[365215169,1749538245920,-490.0,0.00016767,2]
[365215170,1749538245931,-474.2,0.00016767,2]
[365215171,1749538245942,-490.0,0.00016767,2]
[365215172,1749538245953,-490.0,0.00016767,2]
[365215173,1749538245966,-315.59,0.00016767,2]
[365215174,1749538245976,-490.0,0.00016767,2]
[365215175,1749538245987,-490.0,0.00016767,2]
[365215176,1749538245998,-490.0,0.00016767,2]
[365215177,1749538246008,-490.0,0.00016767,2]
[365215178,1749538246019,-490.0,0.00016767,2]
[365215179,1749538246030,-1209.52,0.00016767,2]
[365215180,1749538246041,-490.0,0.00016767,2]
[365215181,1749538246052,-490.0,0.00016767,2]
[365215182,1749538246063,-490.0,0.00016767,2]
[365215183,1749538246074,-569.27922236,0.00016767,2]
[365215184,1749538246085,-490.0,0.00016767,2]
[365215185,1749538246096,-490.0,0.00016767,2]
[365215186,1749538246106,-490.0,0.00016767,2]
[365215187,1749538246117,-490.0,0.00016767,2]
[365215188,1749538246127,-490.0,0.00016767,2]
[365215189,1749538246138,-490.0,0.00016767,2]
[365215191,1749538246149,-490.0,0.00016767,2]
[365215193,1749538246160,-490.0,0.00016767,2]
[365215194,1749538246170,-490.0,0.00016767,2]
[365215195,1749538246181,-490.0,0.00016767,2]
[365215196,1749538246192,-490.0,0.00016767,2]
[365215197,1749538246202,-490.0,0.00016767,2]
[365215198,1749538246213,-490.0,0.00016767,2]
[365215199,1749538246224,-490.0,0.00016767,2]
[365215200,1749538246235,-490.0,0.00016767,2]
[365215201,1749538246246,-490.0,0.00016767,2]
[365215202,1749538246258,-300.85943505,0.00016767,2]
[365215203,1749538246269,-728.09,0.00016767,2]
[365215204,1749538246281,-490.0,0.00016767,2]
[365215205,1749538246292,-490.0,0.00016767,2]
[365215206,1749538246304,-490.0,0.00016767,2]
[365215207,1749538246314,-590.45362824,0.00016767,2]
[365215208,1749538246325,-1092.92,0.00016767,2]
[365215209,1749538246336,-490.0,0.00016767,2]
[365215210,1749538246348,-490.0,0.00016767,2]
[365215211,1749538246360,-1161.25,0.00016767,2]
[365215212,1749538246373,-490.0,0.00016767,2]
[365215213,1749538246385,-490.0,0.00016767,2]
[365215214,1749538246395,-490.0,0.00016767,2]
[365215215,1749538246407,-490.0,0.00016767,2]
[365215216,1749538246419,-490.0,0.00016767,2]
[365215217,1749538246431,-490.0,0.00016767,2]
[365215218,1749538246442,-490.0,0.00016767,2]
[365215219,1749538246453,-490.0,0.00016767,2]
[365215220,1749538246465,-490.0,0.00016767,2]
[365215221,1749538246476,-284.12715389,0.00016767,2]
[365215222,1749538246487,-490.0,0.00016767,2]
[365215223,1749538246499,-490.0,0.00016767,2]
[365215224,1749538246510,-490.0,0.00016767,2]
[365215225,1749538246520,-536.1657709,0.00016767,2]
[365215226,1749538246532,-490.0,0.00016767,2]
[365215227,1749538246544,-490.0,0.00016767,2]
[365215228,1749538246555,-1139.15,0.00016767,2]
[365215229,1749538246566,-490.0,0.00016767,2]
[365215230,1749538246577,-490.0,0.00016767,2]
[365215231,1749538246595,-490.0,0.00016767,2]
[365215232,1749538246605,-490.0,0.00016767,2]
[365215233,1749538246616,-490.0,0.00016767,2]
[365215234,1749538246627,-490.0,0.00016767,2]
[365215235,1749538246638,-225.28106377,0.00016767,2]
[365215236,1749538246648,-490.0,0.00016767,2]
[365215237,1749538246661,-490.0,0.00016767,2]
[365215239,1749538246672,-490.0,0.00016767,2]
[365215240,1749538246683,-490.0,0.00016767,2]
[365215241,1749538246694,-490.0,0.00016767,2]
[365215242,1749538246705,-490.0,0.00016767,2]
[365215243,1749538246715,-490.0,0.00016767,2]
[365215244,1749538246725,-490.0,0.00016767,2]
[365215245,1749538246735,-490.0,0.00016767,2]
[365215246,1749538246746,-490.0,0.00016767,2]
[365215247,1749538246756,-490.0,0.00016767,2]
[365215248,1749538246766,-490.0,0.00016767,2]
[365215249,1749538246777,-460.0,0.00016767,2]
[365215250,1749538246787,-490.0,0.00016767,2]
[365215251,1749538246798,-490.0,0.00016767,2]
[365215252,1749538246809,-490.0,0.00016767,2]
[365215253,1749538246819,-511.88234171,0.00016767,2]
[365215254,1749538246830,-490.0,0.00016767,2]
[365215255,1749538246841,-490.0,0.00016767,2]
[365215256,1749538246851,-490.0,0.00016767,2]
[365215257,1749538246862,-490.0,0.00016767,2]
[365215258,1749538246872,-490.0,0.00016767,2]
[365215259,1749538246884,-490.0,0.00016767,2]
[365215260,1749538246895,-490.0,0.00016767,2]
[365215261,1749538246906,-591.61105342,0.00016767,2]
[365215262,1749538246917,-490.0,0.00016767,2]
[365215263,1749538246928,-490.0,0.00016767,2]
[365215264,1749538246939,-490.0,0.00016767,2]
[365215265,1749538246951,-490.0,0.00016767,2]
[365215266,1749538246961,-490.0,0.00016767,2]
[365215267,1749538246972,-431.8,0.00016767,2]
[365215268,1749538246983,-490.0,0.00016767,2]
[365215269,1749538246994,-490.0,0.00016767,2]
[365215270,1749538247005,-490.0,0.00016767,2]
[365215271,1749538247015,-765.66,0.00016767,2]
[365215272,1749538247026,-490.0,0.00016767,2]
[365215273,1749538247036,-811.46,0.00016767,2]
[365215274,1749538247046,-490.0,0.00016767,2]
[365215275,1749538247056,-490.0,0.00016767,2]
[365215276,1749538247066,-490.0,0.00016767,2]
[365215277,1749538247076,-585.82440526,0.00016767,2]
[365215278,1749538247086,-1734.24,0.00016767,2]
[365215279,1749538247096,-490.0,0.00016767,2]
[365215280,1749538247105,-490.0,0.00016767,2]
[365215282,1749538247115,-490.0,0.00016767,2]
[365215283,1749538247124,-490.0,0.00016767,2]
[365215284,1749538247134,-490.0,0.00016767,2]
[365215285,1749538247144,-490.0,0.00016767,2]
[365215286,1749538247154,-490.0,0.00016767,2]
[365215287,1749538247163,-490.0,0.00016767,2]
[365215288,1749538247173,-490.0,0.00016767,2]
[365215289,1749538247528,-490.0,0.00016767,2]
[365215290,1749538247549,-490.0,0.00016767,2]
[365215291,1749538247568,-490.0,0.00016767,2]
[365215292,1749538247579,-490.0,0.00016767,2]
[365215293,1749538247592,-490.0,0.00016767,2]
[365215294,1749538247602,-490.0,0.00016767,2]
[365215295,1749538247611,-490.0,0.00016767,2]
[365215296,1749538247623,-490.0,0.00016767,2]
[365215297,1749538247634,-1315.54,0.00016767,2]
[365215298,1749538247645,-531.2795062,0.00016767,2]
[365215299,1749538247656,-484.45449621,0.00016767,2]
[365215300,1749538247666,-490.0,0.00016767,2]
[365215301,1749538247675,-490.0,0.00016767,2]
[365215302,1749538247684,-490.0,0.00016767,2]
[365215303,1749538247694,-490.0,0.00016767,2]
[365215304,1749538247703,-490.0,0.00016767,2]
[365215305,1749538247712,-589.81,0.00016767,2]
[365215306,1749538247721,-490.0,0.00016767,2]
[365215307,1749538247731,-490.0,0.00016767,2]
[365215308,1749538247741,-495.18,0.00016767,2]
[365215309,1749538247750,-490.0,0.00016767,2]
[365215310,1749538247759,-504.5961517,0.00016796,2]
[365215311,1749538247769,-454.85,0.000168,2]
[365215312,1749538247780,-909.14,0.000168,2]
[365215313,1749538247790,-454.85,0.000168,2]
[365215314,1749538247799,-454.85,0.000168,2]
[365215315,1749538247808,-454.85,0.000168,2]
[365215316,1749538247818,-170.69,0.000168,2]
[365215317,1749538247827,-170.69,0.000168,2]
[365215318,1749538247838,-170.69,0.000168,2]
[365215319,1749538247849,-163.33,0.000168,2]
[365215320,1749538247858,-163.33,0.000168,2]
[365215321,1749538247868,-162.75,0.000168,2]
[365215322,1749538247877,-1935.89,0.00016805,2]
[365215323,1749538247886,-163.3,0.00016805,2]
[365215324,1749538247896,-163.3,0.00016805,2]
[365215325,1749538247905,-326.15,0.00016805,2]
[365215326,1749538247916,-354.51,0.00016808,2]
[365215327,1749538247925,-354.46,0.00016808,2]
[365215328,1749538247935,-354.46,0.00016808,2]
[365215329,1749538247945,-354.46,0.00016808,2]
[365215330,1749538247955,-500.0,0.00016817,2]
[365215331,1749538247964,-500.0,0.00016817,2]
[365215332,1749538247974,-500.0,0.00016817,2]
[365215333,1749538247984,-500.0,0.00016817,2]
[365215334,1749538247993,-500.0,0.0001682,2]
[365215335,1749538248003,-833.29909032,0.00016864,2]
[365215336,1749538248013,-2260.74129392,0.0001688,2]
[365215337,1749538248022,-5560.69551443,0.000169,2]
[365215338,1749538248034,-454.85,0.000169,2]
[365215339,1749538248044,-454.85,0.000169,2]
[365215340,1749538248054,-151.0,0.00016904,2]
[365215341,1749538248064,-207.4,0.00016904,2]
[365215342,1749538248073,-209.0,0.0001691,2]
[365215343,1749538248083,-500.0,0.0001693,2]
[365215344,1749538248092,-490.0,0.00016931,2]
[365215345,1749538248101,-490.0,0.00016931,2]
[365215346,1749538248111,-450.0,0.00016931,2]
[365215347,1749538248121,-450.0,0.00016931,2]
[365215348,1749538248130,-219.72547322,0.00016931,2]
[365215349,1749538248140,-450.0,0.00016931,2]
[365215350,1749538248150,-490.0,0.00016931,2]
[365215351,1749538248159,-490.0,0.00016931,2]
[365215352,1749538248168,-490.0,0.00016931,2]
[365215353,1749538248178,-450.0,0.00016931,2]
[365215354,1749538248187,-490.0,0.00016931,2]
[365215355,1749538248197,-375.39372908,0.00016931,2]
[365215356,1749538248206,-427.03561866,0.00016931,2]
[365215357,1749538248215,-504.29,0.00016931,2]
[365215358,1749538248225,-351.66281272,0.00016931,2]
[365215359,1749538248234,-450.0,0.00016931,2]
[365215360,1749538248245,-490.0,0.00016931,2]
[365215361,1749538248254,-490.0,0.00016931,2]
[365215362,1749538248263,-450.0,0.00016931,2]
[365215363,1749538248273,-490.0,0.00016931,2]
[365215364,1749538248283,-152.09439418,0.00016931,2]
[365215365,1749538248293,-450.0,0.00016931,2]
[365215366,1749538248302,-490.0,0.00016931,2]
[365215367,1749538248312,-490.0,0.00016931,2]
[365215368,1749538248322,-450.0,0.00016931,2]
[365215369,1749538248331,-234.44304571,0.00016931,2]
[365215370,1749538248342,-450.0,0.00016931,2]
[365215371,1749538248352,-450.0,0.00016931,2]
[365215372,1749538248362,-450.0,0.00016931,2]
[365215373,1749538248372,-450.0,0.00016931,2]
[365215374,1749538248381,-450.0,0.00016931,2]
[365215375,1749538248392,-1000.0,0.00016931,2]
[365215376,1749538248402,-450.0,0.00016931,2]
[365215377,1749538248411,-490.0,0.00016931,2]
[365215378,1749538248421,-490.0,0.00016931,2]
[365215379,1749538248431,-450.0,0.00016931,2]
[365215380,1749538248440,-450.0,0.00016931,2]
[365215381,1749538248450,-450.0,0.00016931,2]
[365215382,1749538248460,-450.0,0.00016931,2]
[365215383,1749538248469,-490.0,0.00016931,2]
[365215384,1749538248479,-450.0,0.00016931,2]
[365215385,1749538248489,-589.92819177,0.00016931,2]
[365215386,1749538248498,-512.36752335,0.00016931,2]
[365215387,1749538248508,-490.0,0.00016931,2]
[365215388,1749538248517,-490.0,0.00016931,2]
[365215389,1749538248527,-167.025961,0.00016931,2]
[365215390,1749538248536,-151.0,0.00016931,2]
[365215391,1749538248546,-450.0,0.00016931,2]
[365215392,1749538248556,-157.625222,0.00016931,2]
[365215393,1749538248565,-490.0,0.00016931,2]
[365215394,1749538248575,-490.0,0.00016931,2]
[365215395,1749538248588,-450.0,0.00016931,2]
[365215396,1749538248598,-450.0,0.00016931,2]
[365215397,1749538248608,-737.53,0.00016931,2]
[365215398,1749538248617,-450.0,0.00016931,2]
[365215399,1749538248629,-490.0,0.00016931,2]
[365215400,1749538248639,-450.0,0.00016931,2]
[365215401,1749538248649,-450.0,0.00016931,2]
[365215402,1749538248660,-490.0,0.00016931,2]
[365215403,1749538248670,-550.96,0.00016931,2]
[365215404,1749538248680,-490.0,0.00016931,2]
[365215405,1749538248689,-316.40993413,0.00016931,2]
[365215406,1749538248699,-490.0,0.00016931,2]
[365215407,1749538248708,-490.0,0.00016931,2]
[365215408,1749538248718,-450.0,0.00016931,2]
[365215409,1749538248727,-450.0,0.00016931,2]
[365215410,1749538248737,-1209.52,0.00016931,2]
[365215411,1749538248748,-450.0,0.00016931,2]
[365215412,1749538248758,-450.0,0.00016931,2]
[365215413,1749538248767,-450.0,0.00016931,2]
[365215414,1749538248777,-450.0,0.00016931,2]
[365215415,1749538248786,-450.0,0.00016931,2]
[365215416,1749538248797,-450.0,0.00016931,2]
[365215417,1749538248807,-450.0,0.00016931,2]
[365215418,1749538248817,-450.0,0.00016931,2]
[365215419,1749538248826,-450.0,0.00016931,2]
[365215420,1749538248836,-450.0,0.00016931,2]
[365215421,1749538248846,-490.0,0.00016931,2]
[365215422,1749538248855,-450.0,0.00016931,2]
[365215423,1749538248865,-490.0,0.00016931,2]
[365215424,1749538248875,-490.0,0.00016931,2]
[365215425,1749538248884,-450.0,0.00016931,2]
[365215426,1749538248895,-490.0,0.00016931,2]
[365215427,1749538248905,-450.0,0.00016931,2]
[365215428,1749538248915,-450.0,0.00016931,2]
[365215429,1749538248925,-450.0,0.00016931,2]
[365215430,1749538248935,-728.09,0.00016931,2]
[365215431,1749538248944,-450.0,0.00016931,2]
[365215432,1749538248954,-490.0,0.00016931,2]
[365215433,1749538248964,-450.0,0.00016931,2]
[365215434,1749538248974,-1092.92,0.00016931,2]
[365215435,1749538248983,-490.0,0.00016931,2]
[365215436,1749538248993,-151.0,0.00016931,2]
[365215437,1749538249003,-490.0,0.00016931,2]
[365215438,1749538249012,-1161.25,0.00016931,2]
[365215439,1749538249022,-450.0,0.00016931,2]
[365215440,1749538249031,-450.0,0.00016931,2]
[365215441,1749538249041,-450.0,0.00016931,2]
[365215442,1749538249050,-151.0,0.00016931,2]
[365215443,1749538249060,-490.0,0.00016931,2]
[365215444,1749538249070,-450.0,0.00016931,2]
[365215445,1749538249079,-450.0,0.00016931,2]
[365215446,1749538249089,-450.0,0.00016931,2]
[365215447,1749538249098,-450.0,0.00016931,2]
[365215448,1749538249107,-450.0,0.00016931,2]
[365215449,1749538249116,-450.0,0.00016931,2]
[365215450,1749538249126,-450.0,0.00016931,2]
[365215451,1749538249136,-450.0,0.00016931,2]
[365215452,1749538249146,-450.0,0.00016931,2]
[365215453,1749538249156,-450.0,0.00016931,2]
[365215454,1749538249166,-1139.15,0.00016931,2]
[365215455,1749538249176,-490.0,0.00016931,2]
[365215456,1749538249186,-450.0,0.00016931,2]
[365215457,1749538249196,-490.0,0.00016931,2]
[365215458,1749538249206,-450.0,0.00016931,2]
[365215459,1749538249216,-490.0,0.00016931,2]
[365215460,1749538249225,-638.64,0.00016931,2]
[365215461,1749538249235,-450.0,0.00016931,2]
[365215462,1749538249245,-490.0,0.00016931,2]
[365215463,1749538249255,-450.0,0.00016931,2]
[365215464,1749538249264,-450.0,0.00016931,2]
[365215465,1749538249274,-490.0,0.00016931,2]
[365215466,1749538249283,-450.0,0.00016931,2]
[365215467,1749538249293,-450.0,0.00016931,2]
[365215468,1749538249302,-450.0,0.00016931,2]
[365215469,1749538249312,-490.0,0.00016931,2]
[365215470,1749538249321,-450.0,0.00016931,2]
[365215471,1749538249331,-490.0,0.00016931,2]
[365215472,1749538249340,-450.0,0.00016931,2]
[365215473,1749538249351,-450.0,0.00016931,2]
[365215474,1749538249360,-450.0,0.00016931,2]
[365215475,1749538249370,-490.0,0.00016931,2]
[365215476,1749538249380,-490.0,0.00016931,2]
[365215477,1749538249391,-450.0,0.00016931,2]
[365215478,1749538249402,-450.0,0.00016931,2]
[365215479,1749538249412,-490.0,0.00016931,2]
[365215480,1749538249423,-450.0,0.00016931,2]
[365215481,1749538249433,-151.0,0.00016931,2]
[365215482,1749538249443,-151.0,0.00016931,2]
[365215483,1749538249453,-320.08038864,0.00016931,2]
[365215484,1749538249463,-151.0,0.00016931,2]
[365215485,1749538249473,-212.09212513,0.00016931,2]
[365215486,1749538249483,-450.0,0.00016931,2]
[365215487,1749538249492,-450.0,0.00016931,2]
[365215488,1749538249502,-450.0,0.00016931,2]
[365215489,1749538249511,-260.90063357,0.00016931,2]
[365215490,1749538249521,-450.0,0.00016931,2]
[365215491,1749538249530,-310.25127169,0.00016931,2]
[365215492,1749538249540,-274.60212863,0.00016931,2]
[365215493,1749538249550,-450.0,0.00016931,2]
[365215494,1749538249560,-765.66,0.00016931,2]
[365215495,1749538249570,-450.0,0.00016931,2]
[365215496,1749538249580,-811.46,0.00016931,2]
[365215497,1749538249594,-490.0,0.00016931,2]
[365215498,1749538249604,-353.18027,0.00016931,2]
[365215499,1749538249614,-450.0,0.00016931,2]
[365215500,1749538249624,-490.0,0.00016931,2]
[365215501,1749538249635,-353.18027,0.00016931,2]
[365215502,1749538249645,-151.0,0.00016931,2]
[365215503,1749538249654,-1734.24,0.00016931,2]
[365215504,1749538249665,-151.0,0.00016931,2]
[365215505,1749538249674,-151.0,0.00016931,2]
[365215506,1749538249686,-490.0,0.00016931,2]
[365215507,1749538249697,-490.0,0.00016931,2]
[365215508,1749538249707,-151.0,0.00016931,2]
[365215509,1749538249716,-450.0,0.00016931,2]
[365215510,1749538249726,-490.0,0.00016931,2]
[365215511,1749538249735,-273.395545,0.00016931,2]
[365215512,1749538249745,-450.0,0.00016931,2]
[365215513,1749538249755,-450.0,0.00016931,2]
[365215514,1749538249765,-490.0,0.00016931,2]
[365215515,1749538249774,-151.0,0.00016931,2]
[365215516,1749538249783,-4677.917954,0.00016931,2]
[365215517,1749538249793,-273.395545,0.00016931,2]
[365215518,1749538249802,-490.0,0.00016931,2]
[365215519,1749538249811,-490.0,0.00016931,2]
[365215520,1749538249820,-450.0,0.00016931,2]
[365215521,1749538249829,-450.0,0.00016931,2]
[365215522,1749538249839,-490.0,0.00016931,2]
[365215523,1749538249849,-450.0,0.00016931,2]
[365215524,1749538249858,-4677.917954,0.00016931,2]
[365215525,1749538249867,-151.0,0.00016931,2]
[365215526,1749538249877,-490.0,0.00016931,2]
[365215527,1749538249888,-490.0,0.00016931,2]
[365215528,1749538249899,-450.0,0.00016931,2]
[365215529,1749538249908,-490.0,0.00016931,2]
[365215530,1749538249917,-1315.54,0.00016931,2]
[365215531,1749538249927,-450.0,0.00016931,2]
[365215532,1749538249936,-490.0,0.00016931,2]
[365215533,1749538249945,-490.0,0.00016931,2]
[365215534,1749538249955,-450.0,0.00016931,2]
[365215535,1749538249964,-490.0,0.00016931,2]
[365215536,1749538249973,-589.81,0.00016931,2]
[365215537,1749538249983,-490.0,0.00016931,2]
[365215538,1749538249995,-490.0,0.00016931,2]
[365215539,1749538250005,-495.18,0.00016931,2]
[365215540,1749538250015,-151.0,0.00016931,2]
[365215541,1749538250025,-151.0,0.00016931,2]
[365215542,1749538250034,-490.0,0.00016931,2]
[365215543,1749538250044,-162.11294309,0.00016954,2]
[365215544,1749538250054,-150.0,0.00016968,2]
[365215545,1749538250064,-1000.0,0.00016998,2]
[365215546,1749538250073,-1000.0,0.00017,2]
[365215547,1749538250083,-150.0,0.00017001,2]
[365215548,1749538250092,-1000.0,0.00017001,2]
[365215549,1749538250101,-1397.0,0.00017013,2]
[365215550,1749538250111,-208.0,0.00017046,4]
[365215551,1749538250120,-1000.0,0.00017046,2]
[365215552,1749538250130,-150.0,0.00017049,2]
[365215553,1749538250139,-1000.0,0.00017052,2]
[365215554,1749538250148,-164.73544592,0.00017068,2]
[365215555,1749538250158,-289.87124077,0.00017076,2]
[365215556,1749538250167,-1111.29387973,0.00017076,2]
[365215557,1749538250176,-1090.23647873,0.00017076,2]
[365215558,1749538250185,-1872.50612137,0.00017076,2]
[365215559,1749538250195,-1000.0,0.00017086,2]
[365215560,1749538250204,-577.04,0.00017095,2]
[365215561,1749538250213,-490.0,0.00017095,2]
[365215562,1749538250223,-490.0,0.00017095,2]
[365215563,1749538250232,-419.65562684,0.00017095,2]
[365215564,1749538250241,-352.83379166,0.00017095,2]
[365215565,1749538250250,-153.33138024,0.00017095,2]
[365215566,1749538250259,-440.0,0.00017095,2]
[365215567,1749538250269,-490.0,0.00017095,2]
[365215568,1749538250278,-440.0,0.00017095,2]
[365215569,1749538250287,-213.76792726,0.00017095,2]
[365215570,1749538250297,-247.51287288,0.00017095,2]
[365215571,1749538250307,-481.51442172,0.00017095,2]
[365215572,1749538250317,-307.99081725,0.00017095,2]
[365215573,1749538250326,-490.0,0.00017095,2]
[365215574,1749538250336,-151.0,0.00017095,2]
[365215575,1749538250345,-490.0,0.00017095,2]
[365215576,1749538250355,-490.0,0.00017095,2]
[365215577,1749538250364,-490.0,0.00017095,2]
[365215578,1749538250374,-490.0,0.00017095,2]
[365215579,1749538250384,-737.53,0.00017095,2]
[365215580,1749538250394,-151.0,0.00017095,2]
[365215581,1749538250403,-490.0,0.00017095,2]
[365215582,1749538250413,-151.0,0.00017095,2]
[365215583,1749538250424,-490.0,0.00017095,2]
[365215584,1749538250433,-490.0,0.00017095,2]
[365215585,1749538250443,-490.0,0.00017095,2]
[365215586,1749538250453,-450.0,0.00017095,2]
[365215587,1749538250463,-1209.52,0.00017095,2]
[365215588,1749538250474,-151.0,0.00017095,2]
[365215589,1749538250484,-490.0,0.00017095,2]
[365215590,1749538250493,-490.0,0.00017095,2]
[365215591,1749538250504,-490.0,0.00017095,2]
[365215592,1749538250515,-490.0,0.00017095,2]
[365215593,1749538250525,-728.09,0.00017095,2]
[365215594,1749538250534,-490.0,0.00017095,2]
[365215595,1749538250544,-1092.92,0.00017095,2]
[365215596,1749538250554,-490.0,0.00017095,2]
[365215597,1749538250564,-490.0,0.00017095,2]
[365215598,1749538250574,-1161.25,0.00017095,2]
[365215599,1749538250586,-450.0,0.00017095,2]
[365215600,1749538250596,-1139.15,0.00017095,2]
[365215601,1749538250606,-490.0,0.00017095,2]
[365215602,1749538250616,-490.0,0.00017095,2]
[365215603,1749538250628,-490.0,0.00017095,2]
[365215604,1749538250639,-490.0,0.00017095,2]
[365215605,1749538250648,-490.0,0.00017095,2]
[365215606,1749538250658,-490.0,0.00017095,2]
[365215607,1749538250668,-490.0,0.00017095,2]
[365215608,1749538250678,-612.12,0.00017095,2]
[365215609,1749538250687,-490.0,0.00017095,2]
[365215610,1749538250697,-490.0,0.00017095,2]
[365215611,1749538250706,-765.66,0.00017095,2]
[365215612,1749538250716,-811.46,0.00017095,2]
[365215613,1749538250726,-490.0,0.00017095,2]
[365215614,1749538250735,-490.0,0.00017095,2]
[365215615,1749538250744,-1734.24,0.00017095,2]
[365215616,1749538250754,-490.0,0.00017095,2]
[365215617,1749538250763,-626.14,0.00017095,2]
[365215618,1749538250773,-571.76369195,0.00017095,2]
[365215619,1749538250782,-450.0,0.00017095,2]
[365215620,1749538250792,-450.0,0.00017095,2]
[365215621,1749538250801,-490.0,0.00017095,2]
[365215622,1749538250811,-450.0,0.00017095,2]
[365215623,1749538250820,-243.89541632,0.00017095,2]
[365215624,1749538250830,-566.08,0.00017095,2]
[365215625,1749538250839,-490.0,0.00017095,2]
[365215626,1749538250849,-1315.54,0.00017095,2]
[365215627,1749538250858,-450.0,0.00017095,2]
[365215628,1749538250867,-490.0,0.00017095,2]
[365215629,1749538250877,-450.0,0.00017095,2]
[365215630,1749538250887,-589.81,0.00017095,2]
[365215631,1749538250896,-490.0,0.00017095,2]
[365215632,1749538250905,-430.0,0.00017095,2]
[365215633,1749538250915,-495.18,0.00017095,2]
[365215634,1749538251077,-377.16490653,0.00017095,2]
[365215635,1749538251090,-1000.0,0.000171,2]
[365215636,1749538251101,-1000.0,0.000171,2]
[365215637,1749538251111,-150.0,0.00017109,2]
[365215638,1749538251122,-410.1300382,0.00017121,2]
[365215639,1749538251133,-150.0,0.00017122,2]
[365215640,1749538251143,-918.24,0.00017123,2]
[365215641,1749538251153,-1000.0,0.00017124,2]
[365215642,1749538251163,-6528.49294189,0.00017129,2]
[365215643,1749538251173,-1000.0,0.00017131,2]
[365215644,1749538251182,-1397.0,0.00017137,2]
[365215645,1749538251192,-209.0,0.0001714,2]
[365215646,1749538251201,-1000.0,0.00017154,2]
[365215647,1749538251211,-150.0,0.0001716,2]
[365215648,1749538251220,-416.89908598,0.00017161,2]
[365215649,1749538251230,-150.0,0.00017192,2]
[365215650,1749538251239,-151.71384899,0.00017195,2]
[365215651,1749538251248,-1000.0,0.00017197,2]
[365215652,1749538251258,-1000.0,0.00017198,2]
[365215653,1749538251267,-152.20748169,0.000172,2]
[365215654,1749538251277,-150.0,0.00017219,2]
[365215655,1749538251287,-150.0,0.00017223,2]
[365215656,1749538251297,-150.0,0.00017225,2]
[365215657,1749538251306,-150.0,0.00017225,2]
[365215658,1749538251316,-150.0,0.00017227,2]
[365215659,1749538251326,-1397.0,0.00017227,2]
[365215660,1749538251335,-150.0,0.00017228,2]
[365215661,1749538251345,-1000.0,0.0001723,2]
[365215662,1749538251356,-416.89908598,0.00017249,2]
[365215663,1749538251365,-150.0,0.00017251,2]
[365215664,1749538251375,-1000.0,0.00017255,2]
[365215665,1749538251386,-2260.74129392,0.00017257,2]
[365215666,1749538251396,-150.0,0.00017259,2]
[365215667,1749538251406,-168.0,0.0001726,2]
[365215668,1749538251415,-490.0,0.0001726,2]
[365215669,1749538251425,-490.0,0.0001726,2]